Cogmind - Beta 10.2 @@@ ROGUE MODE // 2020.12.19 @ 09:38:21 Player: Luigi Panache Result: Destroyed by D-53 Grenadier with Mini Grenade Launcher Performance ------------- Evolutions (0) 0 Regions Visited (2) 400 Robots Destroyed (21) 105 Value Destroyed (620) 620 Prototype IDs (0) 0 Alien Tech Used (0) 0 Bonus (0) 0 TOTAL SCORE: 1125 Bonus ------- None Cogmind --------- Core Integrity 0/250 Matter 300/300 Energy 160/160 System Corruption 1% Temperature Cool (0) Movement Treading (180) Ox1 Location -10/Mines Parts ------- > --- POWER (1) -------- Light Nuclear Core > --- PROPULSION (2) --- Light Treads > --- UTILITY (2) ------ Large Storage Unit > --- WEAPON (2) ------- (None) > --- INVENTORY (10) --- Ion Engine Light Treads Light Treads Wheel Small Storage Unit Large Battery (300) Hacking Suite Autogun Autogun Grenade Launcher Peak State ------------ > --- POWER ------------ Light Nuclear Core > --- PROPULSION ------- Wheel Hover Unit > --- UTILITY ---------- Cooling System Large Storage Unit > --- WEAPON ----------- Beam Rifle Beam Rifle > --- INVENTORY -------- Ion Engine Wheel Compact Wheel Small Storage Unit Large Battery Hacking Suite Autogun Autogun Grenade Launcher [Rating: 13] Favorites ----------- Power Light Nuclear Core Engine Ion Engine Power Core Light Nuclear Core Propulsion Light Treads Treads Light Treads Wheel Wheel Hover Unit Hover Unit Utility Large Storage Unit Device Cooling System Storage Large Storage Unit Weapon Beam Rifle Energy Gun Beam Rifle Build | -11 -10 -10 ------- Run | Scr Mat Min Slots Evolved . | . . . Power . | . . . Propulsion . | . . . Utility . | . . . Weapon . | . . . Parts Attached 33 | 5 28 . Power 5 | . 5 . Engine 4 | . 4 . Core 1 | . 1 . Reactor . | . . . Propulsion 11 | 2 9 . Treads 7 | 2 5 . Leg . | . . . Wheel 3 | . 3 . Hover 1 | . 1 . Flight . | . . . Utility 6 | 1 5 . Device 2 | . 2 . Storage 4 | 1 3 . Processor . | . . . Hackware . | . . . Protection . | . . . Artifact . | . . . Weapon 11 | 2 9 . Energy Gun 11 | 2 9 . Energy Cannon . | . . . Ballistic Gun . | . . . Ballistic Cannon . | . . . Launcher . | . . . Special Weapon . | . . . Impact Weapon . | . . . Slashing Weapon . | . . . Piercing Weapon . | . . . Special Melee Weapon . | . . . Unidentified Prototypes . | . . . Parts Lost 9 | . 5 4 Power . | . . . Propulsion 3 | . 2 1 Utility 1 | . . 1 Weapon 5 | . 3 2 Highest Loss Streak 4 | . 2 4 Average Slot Usage (%) 86 | . 85 93 Engine 5 | . 6 . Core 6 | . 6 14 Treads 15 | . 15 26 Wheel 4 | . 4 . Hover 1 | . 1 . Device 9 | . 9 12 Storage 16 | . 16 14 Energy Gun 24 | . 24 24 Naked Turns . | . . . Heaviest Build 43 | 8 43 29 Greatest Support 40 | 40 40 40 Greatest Overweight (x) 3 | 1 3 . Average Overweight (x) . | . 1 . Largest Inventory Capacity 16 | 6 16 10 Average Capacity 9 | 5 10 10 Most Carried 11 | 5 11 10 Average Carried 8 | 2 8 10 Final Capacity 10 | 6 10 10 Final Carried 10 | 5 10 10 Class Distribution -------------------- 94% | Mutant 5% | Scavenger-Mutant Dominant Class ---------------- Mutant | -10/Materials Mutant | -10/Mines Resources | -11 -10 -10 ----------- Run | Scr Mat Min Matter Collected 520 | 250 270 . Remotely . | . . . Salvage Created 790 | . 790 . Parts 58 | . 58 . Haulers Intercepted 1 | . 1 . Recyclers Shooed . | . . . Parts Field Recycled . | . . . Retrieved Matter . | . . . Parts Self-Destructed . | . . . Prevented . | . . . Kills | -11 -10 -10 ------- Run | Scr Mat Min Combat Hostiles Destroyed 18 | . 18 . Guns 16 | . 16 . AOE 2 | . 2 . Classes Destroyed 5 | . 5 . Hauler 1 | . 1 . Operator 1 | . 1 . Watcher 1 | . 1 . Swarmer 3 | . 3 . Grunt 15 | . 15 . Best Kill Streak 7 | . 7 . Combat Bots Only 7 | . 7 . Max Kills in Single Turn 2 | . 2 . Gunslinging . | . . . Exploded 2 | . 2 . Melee . | . . . Uniques/NPCs Destroyed . | . . . Combat | -11 -10 -10 -------- Run | Scr Mat Min Damage Taken 1181 | . 762 419 Core 274 | . 173 101 Absorbed by Shields . | . . . Core Remaining (%) 100 | 100 . . Volleys Fired 54 | . 54 . Largest 2 | . 2 . Hottest 112 | . 112 . Shots Fired 90 | . 90 . Gun 90 | . 90 . Cannon . | . . . Launcher . | . . . Special . | . . . Kinetic . | . . . Thermal 67 | . 67 . Explosive . | . . . Electromagnetic 23 | . 23 . Robot Hit Streak 9 | . 9 . Robot Miss Streak 6 | . 6 . Penetration Max . | . . . Secondary Targets 1 | . 1 . Max Gunslinging Chain 1 | . 1 . Shots Hit Robots 50 | . 50 . Core Hits 34 | . 34 . Critical Hits . | . . . Critical Kills . | . . . Critical Parts Destroyed . | . . . Melee Attacks . | . . . Impact . | . . . Slashing . | . . . Piercing . | . . . Sneak Attacks . | . . . Combat Hostiles . | . . . Follow-up Attacks . | . . . Damage Inflicted 808 | . 808 . Guns 729 | . 729 . Cannons . | . . . Explosions 79 | . 79 . Melee . | . . . Ramming . | . . . Kinetic . | . . . Thermal 532 | . 532 . Explosive . | . . . Electromagnetic 276 | . 276 . Impact . | . . . Slashing . | . . . Piercing . | . . . Highest Corruption 1 | . 1 1 Average Corruption 1 | . 1 1 Corruption Purged . | . . . Effects 2 | . 1 1 Energy Discharges 1 | . . 1 Data Loss (minor) 1 | . 1 . Overload Shots . | . . . Overflow Damage . | . . . Projectiles . | . . . Explosions . | . . . Melee . | . . . Knockbacks . | . . . Impact . | . . . Kinetic . | . . . Secondary . | . . . Self-Inflicted Damage 52 | . 52 . Shots 2 | . 2 . Rammed . | . . . Targets Rammed . | . . . Kicked . | . . . Crushed . | . . . Highest Temperature 216 | . 216 . Average Temperature 54 | . 54 . Received Heat Transfer 324 | . 324 . Siege Activations . | . . . Robots Corrupted . | . . . Combat Hostiles . | . . . Parts Fried 1 | . 1 . Impact Corruptions . | . . . Robots Melted . | . . . Combat Hostiles . | . . . Parts Melted 2 | . 2 . Heat Transferred 1347 | . 1347 . Parts Sabotaged . | . . . Parts Stolen . | . . . Parts Stripped . | . . . Power Chain Reactions . | . . . Missiles Intercepted . | . . . Alert | -11 -10 -10 ------- Run | Scr Mat Min Peak Influence 300 | . 300 14 Initial 14 | . . 14 Average 111 | . 124 13 Maximum Alert Level 1 | . 1 . Low Security (%) 80 | 100 78 100 Level 1 19 | . 21 . Level 2 . | . . . Level 3 . | . . . Level 4 . | . . . Level 5 . | . . . High Security . | . . . Max Security . | . . . Squads Dispatched 6 | . 6 . Investigation 3 | . 3 . Extermination . | . . . Reinforcement 3 | . 3 . Assault . | . . . Garrison . | . . . Intercept . | . . . Construction Impeded . | . . . Haulers Reinforced . | . . . Stealth | -11 -10 -10 --------- Run | Scr Mat Min Distress Signals 1 | . 1 . Communications Jammed . | . . . Distress Signals . | . . . Times Spotted 33 | . 31 2 Peak Tracking Total 6 | . 6 2 Tactical Retreats 2 | . 2 . Traps | -11 -10 -10 ------- Run | Scr Mat Min Traps Triggered 5 | . 5 . Indirectly . | . . . Trap Hack Attempts . | . . . Triggered . | . . . Disarmed . | . . . Reprogrammed . | . . . Reused . | . . . Traps Extracted . | . . . Installed . | . . . Triggered . | . . . Machines | -11 -10 -10 ---------- Run | Scr Mat Min Machines Disabled 2 | . 2 . Max in Single Turn 2 | . 2 . Machines Sabotaged . | . . . Garrisons Compromised . | . . . Overloaded Fab Kills . | . . . Fab Network Shutdowns . | . . . Hacking | -11 -10 -10 --------- Run | Scr Mat Min Machines Accessed 4 | . 4 . Terminals 2 | . 2 . Fabricators . | . . . Repair Stations . | . . . Recycling Units 2 | . 2 . Scanalyzers . | . . . Garrison Access . | . . . Total Hacks 7 | . 7 . Successful 1 | . 1 . Failed 6 | . 6 . Catastrophic 2 | . 2 . Database Lockouts . | . . . Manual 4 | . 4 . Terminals 4 | . 4 . Fabricators . | . . . Repair Stations . | . . . Recycling Units 3 | . 3 . Scanalyzers . | . . . Garrison Access . | . . . Terminal Hacks . | . . . Fabricator Hacks . | . . . Repair Station Hacks . | . . . Recycling Unit Hacks 1 | . 1 . Retrieve Components 1 | . 1 . Scanalyzer . | . . . Garrison Access Hacks . | . . . Unauthorized Hacks . | . . . Terminals . | . . . Fabricators . | . . . Repair Stations . | . . . Recycling Units . | . . . Scanalyzers . | . . . Garrison Access . | . . . Data Cores Recovered 1 | . 1 . Used 1 | . 1 . Hacking Detections 3 | . 3 . Full Trace Events 3 | . 3 . Feedback Events 1 | . 1 . Corruption 1 | . 1 . Feedback Blocked . | . . . Robot Schematics Acquired . | . . . Robots Built . | . . . Matter . | . . . Time . | . . . Total Robot Build Rating . | . . . Part Schematics Acquired . | . . . Parts Built . | . . . Matter . | . . . Time . | . . . Total Part Build Rating . | . . . Parts Repaired . | . . . Time . | . . . Parts Recycled . | . . . Recycled Matter . | . . . Retrieved Matter . | . . . Retrieved Components 9 | . 9 . Parts Scanalyzed . | . . . Part Schematics Acquired . | . . . Parts Damaged . | . . . Bothacking | -11 -10 -10 ------------ Run | Scr Mat Min Used RIF Installer . | . . . Robots Hacked . | . . . Non-combat . | . . . Combat . | . . . Robot Hacks Applied . | . . . Relay Couplers Released . | . . . Robots Rewired . | . . . Allies Hacked . | . . . Hacks Repelled . | . . . Allies | -11 -10 -10 -------- Run | Scr Mat Min Total Allies . | . . . Largest Group . | . . . Highest-Rated Group . | . . . Highest-Rated Ally . | . . . Total Orders . | . . . Ally Attacks . | . . . Total Damage . | . . . Kills . | . . . Allies Corrupted . | . . . Allies Melted . | . . . Intel | -11 -10 -10 ------- Run | Scr Mat Min Robot Analysis Total . | . . . Derelict Logs Recovered . | . . . Drone Launches . | . . . Drone Recoveries . | . . . Exploration | -11 -10 -10 ------------- Run | Scr Mat Min Turns Passed 1519 | 76 1353 90 Spaces Moved 818 | 44 719 55 Core 12 | 6 6 . Treads 493 | 38 400 55 Legs . | . . . Wheels 313 | . 313 . Hover . | . . . Flight . | . . . Fastest Speed 50 | 50 100 160 Average Speed 140 | 146 138 160 Slowest Speed 200 | 160 200 160 Overloaded Moves . | . . . Propulsion Burnouts . | . . . Robots Hopped . | . . . Cave-ins Triggered . | . . . Exploration Rate (%) 39 | 3 98 18 Regions Visited 2 Branch Regions 1 Pre-discovered Areas . | . . . Known Exits Taken . | . . . Unknown Exits Taken 2 | 1 1 . Scrap Searched . | . . . Spaces Dug . | . . . Terrain Destroyed . | . . . Melee . | . . . Projectile . | . . . AOE . | . . . Terrain Rammed . | . . . Walls Destroyed . | . . . Machines Disabled . | . . . Actions | -11 -10 -10 --------- Run | Scr Mat Min Total 1096 | 54 985 57 Wait 162 | . 160 2 Move 816 | 43 718 55 Hop . | . . . Pick Up 17 | 6 11 . Fast Attach 21 | 4 17 . Attach 6 | 1 5 . Detach . | . . . Swap 6 | . 6 . Drop 14 | . 14 . Fire 54 | . 54 . Melee . | . . . Ram . | . . . Kick . | . . . Crush . | . . . Escape Stasis . | . . . Rewire . | . . . Trap . | . . . Miscellaneous . | . . . Route ------- -11/Scrapyard -10/Materials (discovered 4 exits: [*Mat x3] / [*Min]) -10/Mines History --------- Turn | Location | Event 5 | -11/Scrapyard | Discovered new exit (range 16) 77 | -11/Scrapyard | Entered Materials 246 | -10/Materials | Destroyed 7 combat bots 328 | -10/Materials | Discovered new exit (range 10) 546 | -10/Materials | Discovered new exit (range 9) 650 | -10/Materials | Build established: Mutant 812 | -10/Materials | Core integrity fell below 50% 970 | -10/Materials | Discovered new exit (range 12) 1384 | -10/Materials | Discovered new exit (range 6) 1430 | -10/Materials | Entered Mines 1499 | -10/Mines | Assembled infested the area 1516 | -10/Mines | Core integrity fell below 20% 1520 | -10/Mines | Destroyed by D-53 Grenadier with Mini Grenade Launcher Last Messages --------------- GOAL=ESCAPE Something is scanning the area. 01431_ K-01 Serf collects debris. 01434_ K-01 Serf cleans the Plasma Injector. 01435_ K-01 Serf collects debris. 01438_ K-01 Serf cleans the Plasma Injector. 01440_ K-01 Serf collects debris. 01446_ K-01 Serf cleans the Plasma Injector. 01449_ K-01 Serf collects debris. 01458_ K-01 Serf cleans the Core Extractor. 01476_ System corrupted: Energy discharge (-40). 01499_ ALERT: Infestation in the mines, dispatching Demolisher response squad. 01510_ C-30 ARC bursts open, deploying its payload. 01510_ D-53 Grenadier unfolds itself. 01513_ Beam Rifle destroyed. 01517_ Cooling System destroyed. 01519_ The unstable cave ceiling collapses. 01519_ Lgt. Treads destroyed. 01520_ The unstable cave ceiling collapses. Map ----- +----------------------------------------------------+ | | | | | | | | | | | | | | | | | | | | | | | | | ??????????????????????????????????????????????? | | ??????????????????????????????????????????????? | | ??????????????????????????????????????????????? | | ????????????####??????????????????????????????? | | ???????????## ??????????????????????????????? | | ??????????## ????????????????????????###### | | ?????????## #???????????????######### | | ?????????# #??????????????# | | ?????????? #?###?????????# ####### """ | | ???????????? ## ##????????# #?????# """ | | ?????????????? ###??????# #?????# """ | | ????????????????# ######## #?????# | | ???????????????## #?????##### | | ???????????????# @ ##########?????????# | | ???????????????# #??????????????????# | | ???????????????# # #??????????????????# | | ???????????????# ##?????????????????? | | ???????????????# #???????????????????## | | ???????????????## #????????????????????? | | ????????????????# #???????????????????? | | ???????????????# #????????????????? | | ???????????????## d #???????????????? | | ??????????????? %d #???????????????? | | ??????????????$ ##???????????????? | | ?????????????#### ##????????????????? | | ????????????????# ## ##?????????????????? | | ????????????????## #? #??????????????????? | | ?????????????????## ##?# ??????????????????? | | ??????????????????#####??? ?????????????????? | | ??????????????????????????? ????????????????? | | ???????????????????????????? ????????????????? | | ??????????????????????????????????????????????? | | ??????????????????????????????????????????????? | | ??????????????????????????????????????????????? | | ??????????????????????????????????????????????? | | ??????????????????????????????????????????????? | | ??????????????????????????????????????????????? | | ??????????????????????????????????????????????? | +----------------------------------------------------+ Best States ------------- Heat Dissipation 47 Energy Generation 14 Energy Capacity 250 Matter Stores 300 Matter Capacity 300 Sight Range 16 Terrain Scan Density 10 Evasion (%) 40 Recoil Reduction 2 Item Schematics ----------------- None Robot Schematics ------------------ None Fabricated ------------ Nothing Alien Tech Used ----------------- None Achievements -------------- None Challenges ------------ None Game ------ Seed GatlingPotentialGenerator Manual? 0 Play Time 00:14:27 Cumulative 151.0 hours Start 2020.12.18 @ 22:15:16 End 2020.12.19 @ 09:38:21 Sessions 3 Manual Loads 0 Difficulty Rogue Special Mode None Game No. 131 Rogue 37 Adventurer 52 Explorer 42 Win Type - Total 8 Types 8/0/0/0/0/0/0/0/0 Lore% 59 Gallery% 74 Achievement% 57 Wizard Run 0 Options --------- ASCII 0 Keyboard 0 Movement Mouse Keybinds 0 Fullscreen 2 Font 18/TerminusBold Map View 76x50 Tactical HUD 1 Map Filters NONE Filters NONE Steam 1 RUN: ca4e8933-9d0d-41a6-8396-c1e334c8d0da